bitfinex/quotes_SOLUSD_20230112
["timestamp","ask_amount","ask_price","bid_price","bid_amount"]
[1673534996398,17.0,15.814,15.797,20.0]
[1673534996697,19.14496728,15.813,15.797,20.0]
[1673534996896,17.0,15.812,15.798,47.48]
[1673534997432,22.42,15.81,15.795,67.49]
[1673534997629,17.0,15.809,15.796,20.0]
[1673534997959,36.14496728,15.809,15.796,20.0]
[1673534998171,19.14496728,15.808,15.795,20.0]
[1673534998381,17.0,15.807,15.795,20.0]
[1673534998787,17.0,15.807,15.797,20.0]
[1673534999002,17.0,15.807,15.798,47.48]
[1673534999216,17.0,15.807,15.797,20.0]
[1673535000040,184.9,15.806,15.768,154.13178673]
[1673535000266,36.14496728,15.807,15.777,110.0864]
[1673535000267,64.46,15.805,15.777,110.0864]
[1673535000587,19.14496728,15.804,15.778,20.0]
[1673535000904,17.0,15.803,15.78,20.0]
[1673535001094,17.0,15.803,15.781,54.52931]
[1673535001740,17.0,15.803,15.782,20.0]
[1673535001938,17.0,15.803,15.783,67.53]
[1673535002157,17.0,15.803,15.784,112.9404]
[1673535002370,17.0,15.803,15.785,67.52]
[1673535002569,17.0,15.803,15.786,20.0]
[1673535002781,17.0,15.803,15.788,20.0]
[1673535002994,17.0,15.803,15.789,47.51]
[1673535003743,17.0,15.803,15.79,20.0]
[1673535003937,47.43,15.816,15.79,20.0]
[1673535004142,112.38,15.82,15.791,47.5]
[1673535004357,19.14496728,15.816,15.791,47.5]
[1673535004577,19.14496728,15.816,15.792,20.0]
[1673535004791,19.14496728,15.816,15.793,47.5]
[1673535005001,22.3,15.82,15.793,47.5]
[1673535005211,199.6,15.8,15.794,20.0]
[1673535005433,39.14496728,15.819,15.795,67.49]
[1673535005434,19.14496728,15.819,15.795,67.49]
[1673535005632,19.14496728,15.818,15.795,67.49]
[1673535005846,22.48,15.81,15.795,67.49]
[1673535006052,17.0,15.809,15.795,67.49]
[1673535006248,17.0,15.809,15.79,20.0]
[1673535006457,17.0,15.809,15.789,47.51]
[1673535006671,36.14496728,15.809,15.789,47.51]
[1673535006878,83.59496728,15.809,15.788,67.51]
[1673535007199,20.0,15.808,15.788,67.51]
[1673535007416,17.0,15.807,15.788,67.51]
[1673535007637,36.14496728,15.807,15.788,67.51]
[1673535007949,17.0,15.807,15.788,67.51]
[1673535008372,17.0,15.807,15.78,20.0]
[1673535008373,22.49,15.8,15.781,47.53]
[1673535008684,17.0,15.799,15.784,20.0]
[1673535008998,17.0,15.799,15.786,20.0]
[1673535010556,36.14496728,15.799,15.786,20.0]
[1673535010772,22.49,15.8,15.788,20.0]
[1673535010976,20.0,15.808,15.789,47.51]
[1673535011183,20.0,15.809,15.789,47.51]
[1673535011403,22.6,15.81,15.789,47.51]
[1673535011614,22.6,15.81,15.79,20.0]
[1673535011925,22.6,15.81,15.791,81.86409941]
[1673535012153,19.14496728,15.816,15.792,20.0]
[1673535012363,184.9,15.815,15.793,47.5]
[1673535012552,113.04,15.81,15.791,20.0]
[1673535012767,252.35,15.809,15.791,20.0]
[1673535012972,288.49496728,15.809,15.791,20.0]
[1673535013187,288.49496728,15.809,15.788,20.0]
[1673535013405,22.49,15.8,15.788,20.0]
[1673535013608,17.0,15.799,15.788,20.0]
[1673535015542,47.45,15.808,15.788,20.0]
[1673535015848,20.0,15.807,15.788,20.0]
[1673535016039,47.45,15.808,15.788,20.0]
[1673535016463,252.35,15.809,15.788,20.0]
[1673535017325,47.45,15.809,15.788,20.0]
[1673535017636,20.0,15.808,15.788,20.0]
[1673535017844,47.46,15.807,15.788,20.0]
[1673535018460,20.0,15.808,15.788,20.0]
[1673535018895,47.46,15.807,15.788,20.0]
[1673535019300,20.0,15.808,15.788,20.0]
[1673535019822,64.46,15.807,15.786,20.0]
[1673535020033,83.60496728,15.807,15.786,20.0]
[1673535020246,19.14496728,15.806,15.786,20.0]
[1673535020466,64.46,15.805,15.786,20.0]
[1673535020868,19.14496728,15.804,15.786,20.0]
[1673535021081,17.0,15.803,15.786,20.0]
[1673535021301,22.3,15.8,15.784,112.6505]
[1673535021515,20.0,15.799,15.78,20.0]
[1673535021729,17.0,15.798,15.78,20.0]
[1673535022148,19.14496728,15.797,15.78,20.0]
[1673535022358,17.0,15.796,15.78,20.0]
[1673535023097,22.3,15.8,15.78,20.0]
[1673535023290,47.45,15.809,15.781,47.53]
[1673535023508,22.42,15.8,15.781,47.53]
[1673535023710,67.48,15.799,15.78,20.0]
[1673535023919,22.52,15.79,15.777,137.5671]
[1673535024332,17.0,15.789,15.777,137.5671]
[1673535025300,47.46,15.805,15.778,47.54]
[1673535025506,47.45,15.809,15.779,20.0]
[1673535025727,20.0,15.808,15.78,47.54]
[1673535025932,47.46,15.807,15.781,20.0]
[1673535026148,47.45,15.809,15.782,47.53]
[1673535026346,22.74,15.81,15.783,20.0]
[1673535026679,47.42,15.819,15.785,20.0]
[1673535026911,47.42,15.819,15.786,179.3163]
[1673535027083,47.42,15.819,15.786,186.3134]
[1673535027409,47.42,15.819,15.79,22.43]
[1673535027625,22.3,15.82,15.791,87.5]
[1673535027821,22.3,15.82,15.792,118.7654]
[1673535028024,112.38,15.82,15.793,67.5]
[1673535028442,112.38,15.82,15.794,20.0]
[1673535028658,22.3,15.82,15.795,67.49]
[1673535028868,20.0,15.819,15.795,183.8626]
[1673535029088,47.42,15.818,15.795,183.8626]
[1673535029615,66.56496728,15.818,15.796,20.0]
[1673535029936,67.42,15.819,15.798,20.0]
[1673535030548,86.56496728,15.819,15.799,47.48]
[1673535030758,86.56496728,15.819,15.798,20.0]
[1673535031197,67.42,15.819,15.798,20.0]
[1673535031510,22.3,15.82,15.799,67.48]
[1673535032140,66.54496728,15.827,15.799,67.48]
[1673535032141,19.14496728,15.827,15.799,67.48]
[1673535032351,47.39,15.829,15.8,126.87653484]
[1673535032674,66.53496728,15.829,15.801,102.39533484]
[1673535033098,22.36,15.83,15.802,14.92533484]
[1673535033285,22.36,15.83,15.803,67.47]
[1673535033621,22.36,15.83,15.804,34.92533484]
[1673535033824,19.14496728,15.829,15.805,47.46]
[1673535034043,47.39,15.828,15.805,47.46]
[1673535034233,112.44,15.83,15.805,47.46]
[1673535034450,22.36,15.83,15.806,34.92533484]
[1673535034655,20.0,15.829,15.807,47.46]
[1673535034873,20.0,15.829,15.807,62.38533484]
[1673535035085,20.0,15.829,15.808,14.92533484]
[1673535035287,20.0,15.829,15.809,47.45]
[1673535035506,20.0,15.829,15.81,20.0]
[1673535035714,39.14496728,15.829,15.811,47.44]
[1673535035914,47.39,15.828,15.81,20.0]
[1673535036129,19.14496728,15.828,15.81,20.0]
[1673535036452,47.36,15.839,15.81,34.92533484]
[1673535036664,47.36,15.839,15.811,67.44]
[1673535036876,47.36,15.839,15.811,105.14958822]
[1673535037069,19.14496728,15.838,15.811,67.44]
[1673535037278,22.3,15.83,15.811,67.44]
[1673535037488,22.3,15.83,15.812,20.0]
[1673535037715,22.3,15.83,15.813,67.44]
[1673535037925,47.37,15.837,15.813,67.44]
[1673535038240,19.14496728,15.837,15.814,109.7342]
[1673535038558,47.37,15.836,15.815,67.43]
[1673535038742,22.52,15.83,15.813,47.44]
[1673535038953,67.39,15.829,15.807,157.1942]
[1673535039272,67.39,15.829,15.806,17.4921]
[1673535039482,67.39,15.829,15.808,20.0]
[1673535039483,17.0,15.828,15.808,20.0]
[1673535039697,17.0,15.828,15.809,47.45]
[1673535039921,17.0,15.828,15.808,20.0]
[1673535040133,17.0,15.828,15.809,47.45]
[1673535040350,20.0,15.829,15.81,20.0]
[1673535041084,112.68,15.83,15.81,20.0]
[1673535041085,112.68,15.83,15.811,47.44]
[1673535041277,47.36,15.839,15.812,20.0]
[1673535041494,47.36,15.839,15.813,47.44]
[1673535041708,66.50496728,15.839,15.813,62.36533484]
[1673535041931,66.50496728,15.839,15.813,47.44]
[1673535042237,20.0,15.838,15.814,34.92533484]
[1673535042557,20.0,15.838,15.814,20.0]
[1673535042558,22.49,15.83,15.814,20.0]
[1673535043181,47.39,15.829,15.814,20.0]
[1673535043394,17.0,15.828,15.81,20.0]
[1673535043590,17.0,15.829,15.808,47.45]
[1673535043804,47.39,15.828,15.807,67.46]
[1673535044032,36.14496728,15.827,15.807,67.46]
[1673535044225,17.0,15.827,15.807,67.46]
[1673535044434,36.14496728,15.827,15.807,67.46]
[1673535044647,17.0,15.827,15.807,67.46]
[1673535044867,19.14496728,15.827,15.807,67.46]
[1673535045080,17.0,15.826,15.807,67.46]
[1673535045811,36.14496728,15.826,15.807,67.46]
[1673535046044,137.508041,15.83,15.807,67.46]
[1673535046232,19.14496728,15.828,15.807,67.46]
[1673535047179,25.298041,15.83,15.808,20.0]
[1673535047503,25.298041,15.83,15.809,67.45]
[1673535047702,25.298041,15.83,15.81,20.0]
[1673535047904,25.298041,15.83,15.812,20.0]
[1673535048118,25.298041,15.83,15.813,67.44]
[1673535048326,25.298041,15.83,15.814,20.0]
[1673535048664,25.298041,15.83,15.815,20.0]
[1673535048867,25.298041,15.83,15.816,47.43]
[1673535049187,25.298041,15.83,15.813,20.0]
[1673535049370,25.298041,15.83,15.814,47.43]
[1673535049799,25.298041,15.83,15.814,67.43]
[1673535050013,17.0,15.829,15.814,47.43]
[1673535050221,20.0,15.827,15.808,47.45]
[1673535050534,47.4,15.826,15.807,47.46]
[1673535050858,83.54496728,15.826,15.805,158.0673]
[1673535051389,47.39,15.829,15.805,158.0673]
[1673535051574,20.0,15.828,15.805,158.0673]
[1673535051789,39.14496728,15.828,15.805,158.0673]
[1673535051995,19.14496728,15.827,15.805,158.0673]
[1673535052317,66.54496728,15.827,15.806,25.296339]
[1673535052740,36.14496728,15.826,15.806,25.296339]
[1673535053380,19.14496728,15.826,15.806,25.296339]
[1673535053604,19.14496728,15.826,15.808,20.0]
[1673535053811,19.14496728,15.826,15.806,47.46]
[1673535054025,47.4,15.827,15.805,110.6073]
[1673535054428,20.0,15.826,15.806,37.70958822]
[1673535054746,20.0,15.826,15.806,52.63492306]
[1673535055070,39.14496728,15.828,15.807,47.46]
[1673535055286,20.0,15.828,15.807,47.46]
[1673535055481,20.0,15.825,15.805,110.6073]
[1673535055691,20.0,15.825,15.804,47.46]
[1673535055692,22.52,15.82,15.803,47.47]
[1673535055902,67.42,15.819,15.802,25.30288]
[1673535056102,84.42,15.819,15.802,25.30288]
[1673535057075,19.14496728,15.818,15.802,25.30288]
[1673535057391,67.42,15.819,15.802,25.30288]
[1673535058334,20.0,15.819,15.802,25.30288]
[1673535059075,20.0,15.819,15.796,7.57071484]
[1673535059466,20.0,15.819,15.797,14.92533484]
[1673535059906,47.39,15.828,15.798,17.0]
[1673535060118,20.0,15.827,15.8,20.0]
[1673535060324,66.82300828,15.83,15.8,134.933]
[1673535060538,47.678041,15.83,15.801,132.36844899]
[1673535060941,137.758041,15.83,15.802,29.01470988]
[1673535061258,66.53496728,15.829,15.804,20.0]
[1673535061467,47.678041,15.83,15.804,20.0]
[1673535061679,20.0,15.829,15.805,14.08937504]
[1673535061891,137.758041,15.83,15.806,53.63]
[1673535062120,47.678041,15.83,15.807,20.0]
[1673535062427,137.398041,15.83,15.807,20.0]
[1673535062644,67.39,15.829,15.808,14.08937504]
[1673535062855,20.0,15.829,15.808,14.08937504]
[1673535063255,20.0,15.829,15.807,20.0]
[1673535063466,47.39,15.828,15.808,33.63]
[1673535063695,20.0,15.827,15.808,33.63]
[1673535063905,47.4,15.826,15.808,33.63]
[1673535064340,17.0,15.825,15.808,33.63]
[1673535064856,47.39,15.828,15.808,33.63]
[1673535065068,109.7563,15.829,15.81,20.0]
[1673535065259,20.0,15.828,15.81,20.0]
[1673535065468,20.0,15.828,15.81,34.08937504]
[1673535065895,20.0,15.829,15.81,20.0]
[1673535066100,47.39,15.828,15.808,33.63]
[1673535066315,19.14496728,15.827,15.808,33.63]
[1673535067067,17.0,15.826,15.808,33.63]
[1673535067389,19.14496728,15.825,15.808,33.63]
[1673535067579,64.4,15.824,15.808,33.63]
[1673535067785,17.0,15.824,15.808,33.63]
[1673535068206,36.14496728,15.824,15.808,33.63]
[1673535068628,17.0,15.824,15.808,33.63]
[1673535070094,47.38,15.833,15.809,40.0]
[1673535070309,47.678041,15.83,15.809,40.0]
[1673535070725,25.298041,15.83,15.809,40.0]
[1673535071038,25.298041,15.83,15.811,20.0]
[1673535071361,47.778041,15.83,15.812,62.35537119]
[1673535071574,47.778041,15.83,15.812,100.44311415]
[1673535071898,47.778041,15.83,15.812,62.35537119]
[1673535072111,47.778041,15.83,15.813,53.63]
[1673535072320,25.298041,15.83,15.814,20.0]
[1673535073047,67.39,15.829,15.812,42.35537119]
[1673535073261,45.22,15.82,15.812,80.44311415]
[1673535073459,47.42,15.819,15.812,42.35537119]
[1673535073666,64.42,15.819,15.812,42.35537119]
[1673535073875,17.0,15.819,15.812,42.35537119]
[1673535074423,20.0,15.829,15.812,42.35537119]
[1673535074618,17.0,15.828,15.812,42.35537119]
[1673535074822,20.0,15.827,15.812,42.35537119]
[1673535075037,137.948041,15.83,15.813,20.0]
[1673535075263,47.828041,15.83,15.813,20.0]
[1673535075686,47.828041,15.83,15.814,20.0]
[1673535076621,19.14496728,15.836,15.814,20.0]
[1673535076836,47.36,15.839,15.814,20.0]
[1673535077048,19.14496728,15.836,15.815,20.0]
[1673535077262,19.14496728,15.836,15.816,20.0]
[1673535077473,47.36,15.839,15.816,20.0]
[1673535077474,25.288918,15.834,15.816,20.0]
[1673535077796,25.288918,15.834,15.817,14.08937504]
[1673535078011,25.288918,15.834,15.818,20.0]
[1673535078218,25.288918,15.834,15.819,20.0]
[1673535078406,0.008918,15.834,15.819,34.08937504]
[1673535078619,0.008918,15.834,15.821,20.0]
[1673535078845,0.008918,15.834,15.822,20.0]
[1673535079787,0.008918,15.834,15.822,34.08937504]
[1673535080004,0.008918,15.834,15.823,20.0]
[1673535080188,0.008918,15.834,15.824,20.0]
[1673535080404,22.38,15.85,15.824,34.08937504]
[1673535080721,22.38,15.85,15.825,34.08937504]
[1673535080936,22.38,15.85,15.827,20.0]
[1673535081259,22.38,15.85,15.828,20.0]
[1673535081879,25.266576,15.85,15.829,20.0]
[1673535082091,25.266576,15.85,15.83,65.34]
[1673535082312,25.266576,15.85,15.83,79.42937504]
[1673535082840,25.266576,15.85,15.832,20.0]
[1673535083036,25.266576,15.85,15.833,20.0]
[1673535083780,25.266576,15.85,15.834,20.0]
[1673535083994,25.266576,15.85,15.835,66.3]
[1673535084621,25.266576,15.85,15.837,20.0]
[1673535084826,22.37,15.86,15.837,20.0]
[1673535085044,22.37,15.86,15.838,48.17875008]
[1673535085262,118.0981,15.863,15.838,34.08937504]
[1673535085479,143.343979,15.863,15.84,20.0]
[1673535085683,143.343979,15.863,15.841,20.0]
[1673535085887,143.343979,15.863,15.842,20.0]
[1673535086094,17.0,15.862,15.843,20.0]
[1673535086431,143.343979,15.863,15.843,20.0]
[1673535086635,143.343979,15.863,15.843,34.08937504]
[1673535086828,143.343979,15.863,15.845,20.0]
[1673535087037,143.343979,15.863,15.846,20.0]
[1673535087256,25.245879,15.863,15.846,34.08937504]
[1673535087469,25.245879,15.863,15.847,0.63711868]
[1673535087680,25.245879,15.863,15.846,20.0]
[1673535088112,25.245879,15.863,15.847,20.0]
[1673535088635,25.245879,15.863,15.847,34.08937504]
[1673535089154,25.245879,15.863,15.848,14.08937504]
[1673535089361,25.245879,15.863,15.849,20.0]
[1673535089563,25.245879,15.863,15.85,20.0]
[1673535089772,25.245879,15.863,15.851,20.0]
[1673535090196,25.245879,15.863,15.852,20.0]
[1673535090617,17.0,15.862,15.852,20.0]
[1673535091044,25.245879,15.863,15.852,20.0]
[1673535091679,25.245879,15.863,15.853,20.0]
[1673535091992,25.245879,15.863,15.854,20.0]
[1673535092817,25.245879,15.863,15.855,20.0]
[1673535093261,25.245879,15.863,15.856,20.0]
[1673535094839,25.245879,15.863,15.857,20.0]
[1673535094840,0.005879,15.863,15.857,20.0]
[1673535095680,20.0,15.876,15.857,20.0]
[1673535095886,22.48,15.87,15.857,20.0]
[1673535097042,22.48,15.87,15.856,20.0]
[1673535097233,67.27,15.869,15.834,20.0]
[1673535097447,86.41496728,15.869,15.841,134.6196]
[1673535097657,22.49,15.86,15.841,134.6196]
[1673535098207,17.0,15.859,15.841,134.6196]
[1673535098743,17.0,15.859,15.846,20.0]
[1673535099053,17.0,15.859,15.841,134.6196]
[1673535100194,20.0,15.857,15.836,20.0]
[1673535100409,22.48,15.85,15.836,20.0]
[1673535100615,47.31,15.856,15.836,20.0]
[1673535100935,17.0,15.855,15.836,20.0]
[1673535101148,17.0,15.856,15.836,20.0]
[1673535101563,17.0,15.857,15.836,20.0]
[1673535102098,47.31,15.856,15.836,20.0]
[1673535102314,17.0,15.855,15.836,20.0]
[1673535102626,47.31,15.854,15.836,20.0]
[1673535102844,17.0,15.853,15.836,20.0]
[1673535103029,17.0,15.855,15.836,20.0]
[1673535103367,17.0,15.856,15.836,20.0]
[1673535103562,47.31,15.857,15.836,20.0]
[1673535103563,47.28,15.867,15.837,15.74724819]
[1673535103775,162.8148,15.867,15.838,20.0]
[1673535103984,162.8148,15.867,15.839,20.0]
[1673535104291,115.5348,15.867,15.84,133.1775]
[1673535104496,47.28,15.866,15.841,20.0]
[1673535104706,47.28,15.866,15.842,20.0]
[1673535105145,47.28,15.866,15.843,20.0]
[1673535105364,47.28,15.866,15.844,20.0]
[1673535105554,47.28,15.866,15.846,20.0]
[1673535105760,115.5348,15.867,15.846,20.0]
[1673535106600,22.34,15.87,15.846,20.0]
[1673535108611,22.34,15.87,15.847,20.0]
[1673535108824,22.34,15.87,15.848,20.0]
[1673535109052,22.34,15.87,15.848,128.3339]
[1673535109261,22.34,15.87,15.849,20.0]
[1673535109451,17.0,15.869,15.849,20.0]
[1673535109788,17.0,15.869,15.85,20.0]
[1673535110002,17.0,15.869,15.851,20.0]
[1673535110610,17.0,15.869,15.852,20.0]
[1673535111035,22.34,15.87,15.853,20.0]
[1673535111470,108.7166,15.871,15.853,20.0]
[1673535111782,108.7166,15.871,15.854,20.0]
[1673535112187,108.7166,15.871,15.855,20.0]
[1673535112605,17.0,15.87,15.855,20.0]
[1673535113549,106.41496728,15.869,15.848,20.0]
[1673535113874,17.0,15.868,15.848,20.0]
[1673535114077,47.28,15.867,15.848,20.0]
[1673535114283,113.04,15.87,15.848,20.0]
[1673535114284,22.74,15.87,15.848,20.0]
[1673535114707,70.01,15.87,15.848,20.0]
[1673535115134,70.01,15.87,15.849,20.0]
[1673535115350,22.74,15.87,15.849,20.0]
[1673535115565,22.74,15.87,15.85,20.0]
[1673535115755,22.74,15.87,15.851,20.0]
[1673535116177,22.74,15.87,15.852,20.0]
[1673535116487,160.09,15.87,15.848,20.0]
[1673535116717,59.14496728,15.869,15.844,20.0]
[1673535116929,47.27,15.868,15.844,20.0]
[1673535117128,37.0,15.867,15.844,20.0]
[1673535117326,47.28,15.866,15.844,20.0]
[1673535117533,17.0,15.865,15.844,20.0]
[1673535117760,47.28,15.864,15.844,20.0]
[1673535117976,17.0,15.863,15.844,20.0]
[1673535118172,47.29,15.862,15.844,20.0]
[1673535118383,17.0,15.861,15.844,20.0]
[1673535119032,69.59,15.86,15.844,20.0]
[1673535119239,69.59,15.86,15.846,20.0]
[1673535119435,47.28,15.866,15.846,20.0]
[1673535119643,47.28,15.866,15.847,20.0]
[1673535120076,25.14,15.86,15.847,20.0]
[1673535120497,17.0,15.859,15.843,20.0]
[1673535120700,47.3,15.858,15.843,20.0]
[1673535120906,17.0,15.857,15.843,20.0]
[1673535121129,25.19,15.86,15.843,20.0]
[1673535121656,50.58,15.86,15.84,132.1635]
[1673535121843,67.3,15.859,15.837,20.0]
[1673535122482,47.3,15.859,15.837,20.0]
[1673535122697,47.3,15.859,15.833,73.65281074]
[1673535122698,20.0,15.858,15.833,56.80033662]
[1673535122914,47.31,15.857,15.833,20.0]
[1673535123129,25.28,15.85,15.833,20.0]
[1673535123454,47.33,15.849,15.833,20.0]
[1673535123639,47.33,15.849,15.825,20.0]
[1673535123851,127.02,15.85,15.825,20.0]
[1673535124056,25.56,15.85,15.825,20.0]
[1673535124908,25.56,15.85,15.836,20.0]
[1673535125119,47.33,15.849,15.836,20.0]
[1673535125534,66.47496728,15.849,15.825,20.0]
[1673535125750,20.0,15.848,15.825,20.0]
[1673535125960,64.34,15.847,15.825,20.0]
[1673535126172,20.0,15.846,15.825,20.0]
[1673535126374,64.34,15.845,15.825,20.0]
[1673535126603,17.0,15.845,15.825,20.0]
[1673535126816,17.0,15.845,15.822,20.0]
[1673535127026,47.34,15.844,15.822,20.0]
[1673535127244,17.0,15.843,15.822,20.0]
[1673535127426,47.35,15.842,15.822,20.0]
[1673535127639,17.0,15.841,15.822,20.0]
[1673535128068,17.0,15.841,15.821,139.7256]
[1673535128069,47.36,15.84,15.821,20.0]
[1673535128271,25.25,15.83,15.811,133.1297]
[1673535129016,17.0,15.829,15.811,133.1297]
[1673535129229,17.0,15.829,15.812,16.86560958]
[1673535129418,17.0,15.829,15.813,20.0]
[1673535130071,17.0,15.829,15.813,53.73121916]
[1673535130299,17.0,15.829,15.813,36.86560958]
[1673535130501,17.0,15.829,15.814,20.0]
[1673535131017,17.0,15.829,15.814,36.86560958]
[1673535131228,17.0,15.829,15.814,20.0]
[1673535132059,17.0,15.829,15.815,16.86560958]
[1673535132367,17.0,15.829,15.816,20.0]
[1673535132578,17.0,15.829,15.814,20.0]
[1673535132998,126.99,15.84,15.817,16.86560958]
[1673535133205,126.99,15.84,15.818,20.0]
[1673535133438,126.99,15.84,15.819,20.0]
[1673535133643,126.99,15.84,15.82,20.0]
[1673535133849,126.99,15.84,15.82,36.86560958]
[1673535136168,47.33,15.848,15.825,16.86560958]
[1673535136366,47.33,15.848,15.826,40.0]
[1673535136575,20.0,15.847,15.826,40.0]
[1673535136900,47.34,15.846,15.827,16.86560958]
[1673535137094,20.0,15.847,15.827,16.86560958]
[1673535137428,47.34,15.846,15.826,40.0]
[1673535137622,47.34,15.847,15.826,40.0]
[1673535138581,20.0,15.848,15.827,16.86560958]
[1673535138790,47.34,15.847,15.827,16.86560958]
[1673535139226,67.33,15.848,15.827,16.86560958]
[1673535139427,20.0,15.848,15.827,16.86560958]
[1673535139635,47.33,15.849,15.828,20.0]
[1673535139834,25.43,15.85,15.828,20.0]
[1673535140050,25.43,15.85,15.829,53.73121916]
[1673535140255,25.43,15.85,15.831,20.0]
[1673535140688,19.14496728,15.849,15.826,20.0]
[1673535140905,67.33,15.848,15.826,20.0]
[1673535141331,86.47496728,15.848,15.826,20.0]
[1673535141526,67.33,15.848,15.826,20.0]
[1673535141735,17.0,15.847,15.826,20.0]
[1673535141943,67.34,15.846,15.826,20.0]
[1673535142165,17.0,15.845,15.827,20.0]
[1673535142468,47.34,15.844,15.827,20.0]
[1673535142687,17.0,15.843,15.827,20.0]
[1673535142893,47.35,15.842,15.827,20.0]
[1673535143104,17.0,15.841,15.827,20.0]
[1673535144158,47.36,15.84,15.827,20.0]
[1673535144372,17.0,15.839,15.827,20.0]
[1673535146902,17.0,15.839,15.825,20.0]
[1673535147112,20.0,15.838,15.801,136.82875577]
[1673535147432,64.37,15.837,15.813,36.86560958]
[1673535147621,20.0,15.836,15.813,36.86560958]
[1673535147841,64.37,15.835,15.813,36.86560958]
[1673535148794,64.37,15.835,15.818,20.0]
[1673535149405,64.37,15.835,15.814,20.0]
[1673535149406,25.25,15.83,15.814,20.0]
[1673535149631,17.0,15.829,15.814,20.0]
[1673535151206,17.0,15.829,15.816,20.0]
[1673535153223,47.37,15.836,15.816,20.0]
[1673535153416,25.28,15.84,15.817,16.86560958]
[1673535153627,25.28,15.84,15.816,131.014]
[1673535153628,25.28,15.84,15.818,40.0]
[1673535153943,25.28,15.84,15.816,111.014]
[1673535153944,20.0,15.838,15.816,111.014]
[1673535154157,25.4,15.83,15.816,111.014]
[1673535154800,17.0,15.829,15.816,111.014]
[1673535155207,17.0,15.829,15.817,20.0]
[1673535156171,17.0,15.829,15.814,20.0]
[1673535156392,17.0,15.829,15.816,20.0]
[1673535157516,25.4,15.83,15.816,20.0]
[1673535157726,47.34,15.847,15.816,20.0]
[1673535157937,163.7548,15.847,15.817,20.0]
[1673535158157,25.4,15.84,15.818,20.0]
[1673535158681,25.4,15.84,15.817,20.0]
[1673535158682,20.0,15.839,15.817,20.0]
[1673535158899,47.36,15.838,15.817,20.0]
[1673535159093,20.0,15.837,15.817,20.0]
[1673535159423,64.37,15.836,15.817,20.0]
[1673535160267,25.25,15.83,15.814,20.0]
[1673535160476,17.0,15.829,15.814,20.0]
[1673535160799,47.37,15.836,15.814,20.0]